bitfinex/quotes_BTCUSD_20230106
["timestamp","ask_amount","ask_price","bid_price","bid_amount"]
[1672966750551,1.12643412,16871.0,16870.0,1.27269872]
[1672966751084,1.12643412,16871.0,16870.0,1.33900572]
[1672966751576,1.12643412,16871.0,16870.0,1.27278218]
[1672966751843,1.12643412,16871.0,16870.0,1.27269872]
[1672966752640,1.12643412,16871.0,16870.0,1.27278218]
[1672966752889,1.12643412,16871.0,16870.0,1.27269872]
[1672966753116,1.12653006,16871.0,16870.0,1.27269872]
[1672966753342,1.12643412,16871.0,16870.0,1.27262436]
[1672966754595,0.53370112,16871.0,16870.0,1.27262436]
[1672966754858,0.53370112,16872.0,16870.0,1.33901482]
[1672966755232,0.53370112,16872.0,16871.0,0.62737776]
[1672966755418,0.53370112,16872.0,16871.0,0.69367876]
[1672966755688,0.53370112,16872.0,16871.0,1.28641176]
[1672966755945,1.1920863,16874.0,16871.0,1.28641176]
[1672966755946,0.53370112,16873.0,16871.0,1.28641176]
[1672966756214,0.53370112,16873.0,16872.0,0.27741345]
[1672966756481,0.53370112,16873.0,16872.0,0.34370645]
[1672966756753,0.53370112,16873.0,16872.0,1.55863096]
[1672966757014,1.12136312,16873.0,16872.0,1.55863096]
[1672966758324,0.52870112,16873.0,16872.0,1.55863096]
[1672966759376,0.52870112,16873.0,16872.0,0.58762623]
[1672966759377,1.12136312,16873.0,16872.0,0.58762623]
[1672966759627,1.12136312,16873.0,16872.0,0.58754675]
[1672966760651,1.12136312,16873.0,16872.0,0.58762623]
[1672966761473,1.12145906,16873.0,16872.0,0.58754675]
[1672966761774,1.18541994,16873.0,16872.0,0.58754675]
[1672966762279,1.185324,16873.0,16872.0,0.58754675]
[1672966762538,1.18541994,16873.0,16872.0,0.58754675]
[1672966762843,1.185324,16873.0,16872.0,0.58770551]
[1672966764214,1.71841444,16873.0,16872.0,0.58770551]
[1672966765705,1.185324,16873.0,16872.0,0.58770551]
[1672966765969,1.71838784,16873.0,16872.0,0.58770551]
[1672966766443,1.71838784,16873.0,16872.0,0.58754675]
[1672966766934,1.185324,16873.0,16872.0,0.58754675]
[1672966769756,1.18541994,16873.0,16872.0,0.58754675]
[1672966770011,1.185324,16873.0,16872.0,0.58770551]
[1672966773820,1.185324,16873.0,16872.0,0.58754675]
[1672966777200,1.185324,16873.0,16872.0,0.58770551]
[1672966777720,1.185324,16873.0,16872.0,0.58754675]
[1672966778323,1.18521086,16873.0,16872.0,0.58770551]
[1672966778500,2.3774091,16873.0,16871.0,1.28151028]
[1672966778755,0.53324623,16872.0,16871.0,1.28151028]
[1672966778974,1.71864023,16872.0,16871.0,1.28151028]
[1672966779544,1.185394,16872.0,16871.0,0.65413252]
[1672966779790,1.185394,16872.0,16871.0,1.28151028]
[1672966781043,1.185394,16872.0,16871.0,1.28166905]
[1672966781554,1.185394,16872.0,16871.0,0.65413252]
[1672966783891,1.185394,16872.0,16871.0,0.65429129]
[1672966784146,1.185394,16872.0,16871.0,0.65413252]
[1672966786488,1.185394,16872.0,16871.0,1.28151028]
[1672966787800,1.185394,16872.0,16871.0,0.65413252]
[1672966788331,1.185394,16872.0,16871.0,0.65435926]
[1672966788577,1.185394,16872.0,16871.0,0.65413252]
[1672966789042,1.185394,16872.0,16871.0,1.28151028]
[1672966789333,1.185394,16872.0,16871.0,0.65435926]
[1672966789552,1.185394,16872.0,16871.0,1.28173702]
[1672966790063,1.185394,16872.0,16871.0,1.28151028]
[1672966790827,1.185394,16872.0,16870.0,0.6961421]
[1672966791086,0.53343431,16871.0,16870.0,0.6961421]
[1672966791341,0.53343431,16871.0,16870.0,1.28471191]
[1672966791611,0.53343431,16871.0,16870.0,1.35101291]
[1672966791873,1.12616731,16871.0,16870.0,1.35123966]
[1672966792133,1.12616731,16871.0,16870.0,1.35101291]
[1672966792892,1.12616731,16871.0,16870.0,1.35054891]
[1672966793153,1.12616731,16871.0,16870.0,1.28424791]
[1672966793407,1.12626325,16871.0,16870.0,1.35055491]
[1672966793769,1.12616731,16871.0,16870.0,1.35055491]
[1672966794174,1.12616731,16871.0,16870.0,1.28424791]
[1672966794175,1.71890031,16871.0,16870.0,1.28424791]
[1672966794432,1.12616731,16871.0,16870.0,1.28424791]
[1672966795460,1.12626325,16871.0,16870.0,1.28424791]
[1672966796248,1.12616731,16871.0,16870.0,1.28447466]
[1672966796489,1.12616731,16871.0,16870.0,1.28424791]
[1672966797271,1.12616731,16871.0,16870.0,1.28447466]
[1672966798075,1.12616731,16871.0,16870.0,1.28424791]
[1672966798336,1.12616731,16871.0,16870.0,1.28447466]
[1672966798612,0.53353025,16871.0,16870.0,1.28424791]
[1672966798907,0.53343431,16871.0,16870.0,1.28424791]
[1672966799428,0.53343431,16871.0,16870.0,1.28447466]
[1672966799692,0.53343431,16871.0,16870.0,1.35078166]
[1672966800301,0.53343431,16871.0,16870.0,1.28447466]
[1672966800822,0.53343431,16871.0,16870.0,1.35078166]
[1672966801351,0.53343431,16872.0,16870.0,1.94354966]
[1672966801606,0.53343431,16872.0,16871.0,0.62737776]
[1672966801850,0.53343431,16872.0,16871.0,1.12737776]
[1672966802104,0.53343431,16872.0,16871.0,0.69120988]
[1672966803148,0.53343431,16872.0,16871.0,1.36141355]
[1672966803913,1.12613131,16872.0,16871.0,1.36141355]
[1672966804423,1.12622725,16872.0,16871.0,1.29511355]
[1672966804673,1.12613131,16872.0,16871.0,1.29758143]
[1672966804934,1.12613131,16872.0,16871.0,1.36388143]
[1672966807279,1.12613131,16872.0,16871.0,1.29758143]
[1672966807548,1.12613131,16872.0,16871.0,1.36388143]
[1672966810459,1.12613131,16872.0,16871.0,0.0663]
[1672966810717,0.592697,16872.0,16870.0,1.87806021]
[1672966810981,1.185394,16872.0,16871.0,0.0663]
[1672966811241,1.185394,16872.0,16871.0,0.69503919]
[1672966811242,0.59279294,16872.0,16871.0,0.69503919]
[1672966811495,0.592697,16872.0,16871.0,1.3225004]
[1672966811751,1.12626691,16872.0,16871.0,1.3225004]
[1672966813550,0.53356991,16872.0,16871.0,1.3225004]
[1672966815358,0.51681458,16872.0,16871.0,1.31654987]
[1672966817416,0.51691052,16872.0,16871.0,0.68908866]
[1672966817687,1.10960752,16872.0,16871.0,0.62873919]
[1672966817944,1.10905197,16872.0,16871.0,0.62873919]
[1672966818206,1.10914791,16872.0,16871.0,0.62873919]
[1672966818718,1.10905197,16872.0,16871.0,0.62873919]
[1672966820507,1.10905197,16872.0,16871.0,0.62889795]
[1672966820852,1.10905197,16872.0,16871.0,0.62873919]
[1672966821018,1.70174897,16872.0,16871.0,0.62873919]
[1672966822266,1.185394,16872.0,16871.0,0.62873919]
[1672966822519,1.185394,16872.0,16870.0,0.6956781]
[1672966822775,1.8050278,16872.0,16870.0,0.61517548]
[1672966823030,3.23484299,16872.0,16870.0,0.06830034]
[1672966823279,9.594e-05,16871.0,16870.0,0.06830034]
[1672966823537,1.18556194,16871.0,16870.0,0.06830034]
[1672966823789,1.185466,16871.0,16870.0,0.06845911]
[1672966824049,1.185466,16871.0,16870.0,0.06830034]
[1672966824310,1.18556194,16871.0,16870.0,0.06830034]
[1672966826594,1.185466,16871.0,16870.0,0.06830034]
[1672966828624,1.185466,16871.0,16870.0,0.06989458]
[1672966828880,1.185466,16871.0,16870.0,0.06830034]
[1672966829390,1.778199,16871.0,16870.0,0.06830034]
[1672966830174,1.77829494,16871.0,16870.0,0.06830034]
[1672966833537,1.778199,16871.0,16870.0,0.06989458]
[1672966833758,1.77829494,16871.0,16870.0,0.06830034]
[1672966834505,1.778199,16871.0,16870.0,0.06830034]
[1672966834730,1.77829494,16871.0,16870.0,0.06830034]
[1672966835993,1.778199,16871.0,16870.0,0.06830034]
[1672966837034,1.77829494,16871.0,16870.0,0.06830034]
[1672966837547,1.778199,16871.0,16870.0,0.06989458]
[1672966837795,2.31134286,16871.0,16870.0,0.06989458]
[1672966838042,2.31134286,16871.0,16870.0,0.06830034]
[1672966838541,1.77829494,16871.0,16870.0,0.06830034]
[1672966839226,2.31141644,16871.0,16870.0,0.06830034]
[1672966839718,1.77829494,16871.0,16870.0,0.06830034]
[1672966840033,2.3114158,16871.0,16870.0,0.06830034]
[1672966841270,2.31131986,16871.0,16870.0,0.06830034]
[1672966841784,2.31131986,16871.0,16870.0,0.06820717]
[1672966842527,2.31131986,16871.0,16870.0,0.06980141]
[1672966842528,1.71858686,16871.0,16870.0,0.06980141]
[1672966842748,1.71858686,16871.0,16870.0,0.06820717]
[1672966843480,1.71858686,16871.0,16870.0,0.64209949]
[1672966847458,1.71858686,16871.0,16870.0,0.64217919]
[1672966848133,1.71858686,16871.0,16870.0,0.64209949]
[1672966848367,1.71858686,16871.0,16870.0,0.64217919]
[1672966848633,1.71858686,16871.0,16870.0,0.64209949]
[1672966849390,1.71858686,16871.0,16870.0,0.64217919]
[1672966850092,1.71858686,16871.0,16870.0,0.64209949]
[1672966850539,1.71858686,16871.0,16870.0,0.64217919]
[1672966851880,1.71858686,16871.0,16870.0,0.64209949]
[1672966851881,1.7186828,16871.0,16870.0,0.64209949]
[1672966852147,1.71858686,16871.0,16870.0,0.64209949]
[1672966854933,1.7186828,16871.0,16870.0,0.64209949]
[1672966855251,1.71858686,16871.0,16870.0,0.64209949]
[1672966857063,1.7186828,16871.0,16870.0,0.64209949]
[1672966858095,1.18556194,16871.0,16870.0,0.63709949]
[1672966859392,1.185466,16871.0,16870.0,0.63717919]
[1672966859621,1.71904262,16871.0,16870.0,0.63709949]
[1672966860130,1.71904278,16871.0,16870.0,0.63709949]
[1672966860629,1.71913872,16871.0,16870.0,0.63709949]
[1672966860900,1.71904278,16871.0,16870.0,0.63709949]
[1672966861392,1.185466,16871.0,16870.0,0.63717919]
[1672966861635,1.185466,16871.0,16870.0,0.63709949]
[1672966862112,1.71912511,16871.0,16870.0,0.63709949]
[1672966862618,1.18556194,16871.0,16870.0,0.63709949]
[1672966863105,1.185466,16871.0,16870.0,0.63709949]
[1672966863602,1.12637957,16871.0,16870.0,0.63709949]
[1672966863859,0.53364657,16871.0,16870.0,0.63717919]
[1672966864110,0.53564657,16871.0,16870.0,0.64017919]
[1672966864609,0.53564657,16871.0,16870.0,0.64009949]
[1672966864871,0.53564657,16871.0,16870.0,0.64017919]
[1672966865368,0.53564657,16871.0,16870.0,0.64009949]
[1672966865884,0.53564657,16871.0,16870.0,0.64017919]
[1672966866150,0.53564657,16871.0,16870.0,0.64009949]
[1672966866924,0.53564657,16871.0,16870.0,0.64017919]
[1672966867186,0.53564657,16871.0,16870.0,0.64009949]
[1672966867963,0.53574251,16871.0,16870.0,0.64009949]
[1672966868229,0.53564657,16871.0,16870.0,0.64009949]
[1672966868485,1.72111257,16871.0,16870.0,0.64009949]
[1672966869042,1.72111257,16871.0,16870.0,0.06620717]
[1672966869043,1.72120851,16871.0,16870.0,0.06620717]
[1672966869301,1.77105043,16871.0,16870.0,0.06620717]
[1672966869554,1.77095449,16871.0,16870.0,0.06620717]
[1672966870075,1.77105043,16871.0,16870.0,0.06620717]
[1672966870678,1.77095449,16871.0,16870.0,0.06620717]
[1672966870846,1.77095449,16871.0,16870.0,0.69358493]
[1672966871103,1.77095449,16871.0,16870.0,0.06620717]
[1672966871356,1.77095449,16871.0,16870.0,0.69358493]
[1672966871626,1.77095449,16871.0,16870.0,0.69542601]
[1672966872132,1.77095449,16871.0,16870.0,0.06620717]
[1672966874174,1.77105043,16871.0,16870.0,0.06620717]
[1672966875686,2.37049073,16871.0,16870.0,0.06620717]
[1672966875944,1.77105043,16871.0,16870.0,0.06620717]
[1672966876475,1.77095449,16871.0,16870.0,0.06620717]
[1672966877197,1.77105043,16871.0,16870.0,0.06620717]
[1672966877449,1.77095449,16871.0,16870.0,0.06620717]
[1672966877697,1.77095449,16871.0,16870.0,0.77772377]
[1672966877948,1.72117722,16871.0,16870.0,1.40510153]
[1672966878256,1.72117722,16871.0,16870.0,0.77772377]
[1672966878487,1.72117722,16871.0,16870.0,0.83808377]
[1672966878752,1.72117722,16871.0,16870.0,0.77772377]
[1672966879276,1.187466,16871.0,16870.0,0.77772377]
[1672966879522,1.187466,16871.0,16870.0,0.87772377]
[1672966879794,1.72120493,16871.0,16870.0,0.93808677]
[1672966880048,1.12847193,16871.0,16870.0,0.87772377]
[1672966880836,1.12847193,16871.0,16870.0,0.93808677]
[1672966881076,1.12856787,16871.0,16870.0,0.93808677]
[1672966881329,1.12847193,16871.0,16870.0,0.93797372]
[1672966881835,1.12847193,16871.0,16870.0,0.87761072]
[1672966882042,1.12847193,16871.0,16870.0,0.93797372]
[1672966882522,1.12856787,16871.0,16870.0,0.93797372]
[1672966882774,1.02847193,16871.0,16870.0,0.93797372]
[1672966883043,1.02847193,16871.0,16870.0,0.87761072]
[1672966883564,1.02847193,16871.0,16870.0,0.93797372]
[1672966885623,0.494733,16871.0,16870.0,0.93797372]
[1672966885881,1.02848348,16871.0,16870.0,0.93797372]
[1672966886074,1.02848348,16871.0,16870.0,0.87761072]
[1672966886330,1.62121648,16871.0,16870.0,0.87761072]
[1672966886589,1.02848348,16871.0,16870.0,0.87761072]
[1672966886852,1.02848348,16871.0,16870.0,0.93797372]
[1672966887109,1.087466,16871.0,16870.0,0.87461072]
[1672966887365,1.09656194,16871.0,16870.0,0.92461072]
[1672966887621,0.50382894,16871.0,16870.0,0.92461072]
[1672966887870,0.503733,16871.0,16870.0,0.92461072]
[1672966888891,0.50382894,16871.0,16870.0,0.92461072]
[1672966889141,0.503733,16871.0,16870.0,0.92461072]
[1672966890541,1.03748378,16871.0,16870.0,0.92461072]
[1672966891334,1.03748378,16871.0,16870.0,0.92485361]
[1672966892133,0.503733,16871.0,16870.0,0.92485361]
[1672966892390,1.03748523,16871.0,16870.0,0.92485361]
[1672966892899,1.03748523,16871.0,16870.0,0.92461072]
[1672966893413,1.03748523,16871.0,16870.0,0.92485361]
[1672966893951,1.03748523,16871.0,16870.0,0.92461072]
[1672966894938,0.503733,16871.0,16870.0,0.92461072]
[1672966895193,0.503733,16871.0,16870.0,0.98497372]
[1672966895440,1.03748559,16871.0,16870.0,0.98650413]
[1672966896161,1.03748559,16871.0,16870.0,0.98497372]
[1672966896634,1.03748559,16871.0,16870.0,0.92614113]
[1672966896883,1.03748559,16871.0,16870.0,0.98497372]
[1672966897349,1.03748559,16871.0,16870.0,0.92461072]
[1672966897647,1.03748559,16871.0,16870.0,0.98497372]
[1672966897867,1.03748559,16871.0,16870.0,0.98650413]
[1672966898108,1.03748559,16871.0,16870.0,0.92461072]
[1672966898357,1.03758153,16871.0,16870.0,0.92461072]
[1672966898606,1.03748559,16871.0,16870.0,0.92461072]
[1672966899808,1.03748559,16871.0,16870.0,0.92614113]
[1672966900982,1.03758153,16871.0,16870.0,0.92461072]
[1672966901236,0.03748559,16871.0,16870.0,0.92614113]
[1672966901494,0.03748559,16871.0,16870.0,0.98650413]
[1672966901742,0.63021859,16871.0,16870.0,0.92614113]
[1672966904091,0.63021859,16871.0,16870.0,0.92461072]
[1672966904092,0.63031453,16871.0,16870.0,0.92461072]
[1672966904346,0.63021859,16871.0,16870.0,0.92461072]
[1672966904608,0.63021859,16871.0,16870.0,0.924918]
[1672966904899,0.592733,16871.0,16870.0,0.92461072]
[1672966905906,0.592733,16871.0,16870.0,0.924918]
[1672966907451,0.592733,16871.0,16870.0,0.92461072]
[1672966907452,0.59282894,16871.0,16870.0,0.92461072]
[1672966907714,0.592733,16871.0,16870.0,0.92631072]
[1672966907977,0.592733,16871.0,16870.0,0.92461072]
[1672966908756,0.592733,16871.0,16870.0,0.92631072]
[1672966909251,0.592733,16871.0,16870.0,0.92461072]
[1672966910771,1.185466,16871.0,16870.0,0.92461072]
[1672966911023,1.185466,16871.0,16870.0,0.92631072]
[1672966911275,1.18556194,16871.0,16870.0,0.92461072]
[1672966912275,1.185466,16871.0,16870.0,0.92461072]
[1672966913310,1.18556194,16871.0,16870.0,0.92461072]
[1672966913566,1.185466,16871.0,16870.0,0.92469572]
[1672966913817,1.185466,16871.0,16870.0,0.92461072]
[1672966914857,1.185466,16871.0,16870.0,0.92631072]
[1672966915384,1.18556194,16871.0,16870.0,0.92461072]
[1672966915608,1.7849063,16871.0,16870.0,0.92461072]
[1672966916691,1.185466,16871.0,16870.0,0.92461072]
[1672966917401,1.18556194,16871.0,16870.0,0.92461072]
[1672966918019,1.185466,16871.0,16870.0,0.92461072]
[1672966918270,1.185466,16871.0,16870.0,0.92631072]
[1672966918527,1.78500224,16871.0,16870.0,0.92461072]
[1672966919039,1.78500224,16871.0,16870.0,0.21309412]
[1672966920597,1.7849063,16871.0,16870.0,0.21309412]
[1672966920991,1.7849063,16871.0,16870.0,0.21317912]
[1672966921241,1.7849063,16871.0,16870.0,0.21309412]
[1672966922851,1.1921733,16871.0,16870.0,0.21309412]
[1672966923384,1.1930303,16871.0,16870.0,0.21309412]
[1672966923885,1.7857633,16871.0,16870.0,0.21309412]
[1672966924194,1.7857633,16871.0,16870.0,0.21300223]
[1672966924420,1.78585924,16871.0,16870.0,0.21300223]
[1672966925331,2.37859224,16871.0,16870.0,0.21300223]
[1672966925773,2.37859224,16871.0,16870.0,0.16300223]
[1672966926025,2.38059224,16871.0,16870.0,0.17100223]
[1672966926717,2.3804963,16871.0,16870.0,0.17100223]
[1672966927020,3.07474464,16871.0,16870.0,0.17100223]
[1672966927308,3.98627464,16871.0,16870.0,0.17100223]
[1672966927564,3.07474464,16871.0,16870.0,0.17100223]
[1672966927810,3.07484058,16871.0,16870.0,0.17100223]
[1672966928609,3.07474464,16871.0,16870.0,0.17100223]
[1672966928611,2.48201164,16871.0,16870.0,0.17100223]
[1672966928868,3.07474464,16871.0,16870.0,0.23136523]
[1672966929125,3.07474464,16871.0,16870.0,0.17100223]
[1672966930149,3.07474464,16871.0,16870.0,0.23136523]
[1672966930871,3.07474464,16871.0,16870.0,0.17100223]
[1672966931133,3.07474464,16871.0,16870.0,0.23136523]
[1672966931397,3.07474464,16871.0,16870.0,0.17100223]
[1672966932246,3.07484058,16871.0,16870.0,0.17100223]
[1672966932736,3.07474464,16871.0,16870.0,0.17100223]
[1672966933253,3.07484058,16871.0,16870.0,0.17100223]
[1672966933749,3.07484058,16871.0,16870.0,0.23136523]
[1672966933994,3.07484058,16871.0,16870.0,0.17100223]
[1672966934216,3.07484058,16871.0,16870.0,0.23136523]
[1672966934980,2.48210758,16871.0,16870.0,0.17100223]
[1672966935774,3.07484058,16871.0,16870.0,0.17100223]
[1672966938319,2.48210758,16871.0,16870.0,0.17100223]
[1672966941099,3.07484058,16871.0,16870.0,0.17100223]
[1672966944334,2.48210758,16871.0,16870.0,0.17100223]
[1672966945913,3.07474464,16871.0,16870.0,0.17100223]
[1672966946420,3.07474464,16871.0,16870.0,0.17093677]
[1672966947501,2.48201164,16871.0,16870.0,0.17093677]
[1672966949792,3.07474464,16871.0,16870.0,0.17093677]
[1672966950055,2.48201164,16871.0,16870.0,0.17093677]
[1672966950795,2.48210758,16871.0,16870.0,0.17093677]
[1672966951275,3.07484058,16871.0,16870.0,0.17093677]
[1672966955005,2.48210758,16871.0,16870.0,0.17093677]
[1672966956591,2.48201164,16871.0,16870.0,0.17093677]
[1672966957099,3.07474464,16871.0,16870.0,0.17093677]
[1672966957369,2.47530434,16871.0,16870.0,0.17093677]
[1672966958382,2.47540028,16871.0,16870.0,0.17093677]
[1672966960818,2.47530434,16871.0,16870.0,0.17093677]
[1672966963403,2.47530434,16871.0,16870.0,0.17102176]
[1672966963625,3.07599757,16871.0,16870.0,0.17102176]
[1672966963912,3.07599757,16871.0,16870.0,0.17093677]
[1672966964410,3.07609351,16871.0,16870.0,0.17093677]
[1672966967304,2.48336051,16871.0,16870.0,0.17093677]
[1672966967742,2.47540028,16871.0,16870.0,0.17093677]
[1672966969416,3.07609557,16871.0,16870.0,0.17093677]
[1672966969624,3.07609557,16871.0,16870.0,0.17082148]
[1672966969843,2.47540028,16871.0,16870.0,0.17082148]
[1672966973347,2.77540028,16871.0,16870.0,0.17082148]
[1672966973571,2.47540028,16871.0,16870.0,0.17082148]
[1672966975308,2.47530434,16871.0,16870.0,0.17082148]
[1672966975994,3.07599278,16871.0,16870.0,0.17082148]
[1672966976245,2.47530434,16871.0,16870.0,0.17082148]
[1672966976517,3.07599337,16871.0,16870.0,0.17082148]
[1672966977030,2.48326037,16871.0,16870.0,0.17082148]
[1672966977535,2.48326039,16871.0,16870.0,0.17082148]
[1672966978573,3.07608933,16871.0,16870.0,0.17082148]
[1672966981858,2.47540028,16871.0,16870.0,0.17082148]
[1672966983796,2.47530434,16871.0,16870.0,0.17090647]
[1672966984045,1.88257134,16871.0,16870.0,0.17082148]
[1672966984300,1.7890202,16871.0,16870.0,0.79968728]
[1672966984524,1.7890202,16871.0,16870.0,0.17082148]
[1672966985523,1.7890202,16871.0,16870.0,0.23118448]
[1672966985787,1.7890202,16871.0,16870.0,0.17082148]
[1672966987545,1.78911614,16871.0,16870.0,0.17082148]
[1672966989335,1.7890202,16871.0,16870.0,0.17252148]
[1672966989620,1.7890202,16871.0,16870.0,0.17082148]
[1672966989854,1.78911614,16871.0,16870.0,0.17082148]
[1672966990373,1.7890202,16871.0,16870.0,0.17075624]
[1672966990889,1.78911614,16871.0,16870.0,0.17075624]
[1672966993013,2.38184914,16871.0,16870.0,0.17075624]
[1672966995265,2.43429735,16871.0,16870.0,0.17075624]
[1672966999382,2.43429735,16871.0,16870.0,0.23111924]
[1672966999632,3.03490135,16871.0,16870.0,0.23111924]
[1672966999884,3.03490135,16871.0,16870.0,0.17075624]
[1672967000596,2.43420141,16871.0,16870.0,0.17075624]
[1672967000849,3.03490126,16871.0,16870.0,0.17075624]
[1672967003583,3.0349972,16871.0,16870.0,0.17075624]
[1672967004825,3.03499809,16871.0,16870.0,0.17075624]
[1672967005645,2.43429735,16871.0,16870.0,0.17075624]
[1672967005898,3.03499999,16871.0,16870.0,0.23111924]
[1672967006169,3.03499999,16871.0,16870.0,0.17075624]
[1672967007456,2.43429735,16871.0,16870.0,0.17075624]
[1672967008678,2.43429735,16871.0,16870.0,0.108]
[1672967010952,2.43429735,16871.0,16870.0,0.10788477]
[1672967013714,2.73429735,16871.0,16870.0,0.10788477]
[1672967014790,3.34582735,16871.0,16870.0,0.10788477]
[1672967016813,2.43420141,16871.0,16870.0,0.10788477]
[1672967018645,2.43429735,16871.0,16870.0,0.10788477]
[1672967022019,2.73429735,16871.0,16870.0,0.10788477]
[1672967022281,2.43429735,16871.0,16870.0,0.10788477]
[1672967025044,3.04582735,16871.0,16870.0,0.10788477]
[1672967031391,3.34582735,16871.0,16870.0,0.10788477]
[1672967033724,3.34582735,16871.0,16870.0,0.10779328]
[1672967043749,2.73429735,16871.0,16870.0,0.10779328]
[1672967045178,2.43429735,16871.0,16870.0,0.10779328]
[1672967045685,2.73429735,16871.0,16870.0,0.10779328]
[1672967045921,2.43429735,16871.0,16870.0,0.10779328]
[1672967048206,2.73429735,16871.0,16870.0,0.10779328]
[1672967048953,2.43429735,16871.0,16870.0,0.10779328]
[1672967049454,2.73429735,16871.0,16870.0,0.10779328]
[1672967049756,2.43429735,16871.0,16870.0,0.10779328]
[1672967050842,2.73429735,16871.0,16870.0,0.10779328]
[1672967051643,2.43429735,16871.0,16870.0,0.10779328]
[1672967051883,2.73429735,16871.0,16870.0,0.10779328]
[1672967052117,2.43429735,16871.0,16870.0,0.10779328]
[1672967052625,2.73429735,16871.0,16870.0,0.10779328]
[1672967055825,2.43429735,16871.0,16870.0,0.10779328]
[1672967056039,2.43420141,16871.0,16870.0,0.10787827]
[1672967056292,2.43420141,16871.0,16870.0,0.10779328]
[1672967056795,1.84146841,16871.0,16870.0,0.10779328]
[1672967058100,1.84146841,16871.0,16870.0,0.107681]
[1672967058322,1.84156435,16871.0,16870.0,0.107681]
[1672967058570,2.43429735,16871.0,16870.0,0.107681]
[1672967061734,2.73429735,16871.0,16870.0,0.107681]
[1672967061989,2.43429735,16871.0,16870.0,0.107681]
[1672967063265,3.03491554,16871.0,16870.0,0.107681]
[1672967063528,3.03490486,16871.0,16870.0,0.107681]
[1672967064066,3.0349055,16871.0,16870.0,0.107681]
[1672967064585,3.03490628,16871.0,16870.0,0.107681]
[1672967064883,2.43429735,16871.0,16870.0,0.107681]
[1672967065107,3.03490526,16871.0,16870.0,0.107681]
[1672967065388,3.03490561,16871.0,16870.0,0.107681]
[1672967065893,2.43429735,16871.0,16870.0,0.107681]
[1672967067252,3.03489149,16871.0,16870.0,0.107681]
[1672967069420,2.44206255,16871.0,16870.0,0.10776599]
[1672967069695,2.44206255,16871.0,16870.0,0.107681]
[1672967071392,2.44206255,16871.0,16870.0,0.10776599]
[1672967071624,2.44199421,16871.0,16870.0,0.107681]
[1672967073161,2.44209015,16871.0,16870.0,0.107681]
[1672967075364,2.44199421,16871.0,16870.0,0.107681]
[1672967075637,2.44209015,16871.0,16870.0,0.107681]
[1672967076944,3.03482315,16871.0,16870.0,0.107681]
[1672967077191,2.44209015,16871.0,16870.0,0.107681]
[1672967078448,3.03482315,16871.0,16870.0,0.107681]
[1672967083337,2.43422901,16871.0,16870.0,0.107681]
[1672967083854,2.73422901,16871.0,16870.0,0.107681]
[1672967084097,2.0810836,16871.0,16870.0,0.82547967]
[1672967084361,2.38153102,16871.0,16870.0,0.107681]
[1672967084616,2.39251766,16871.0,16870.0,0.107681]
[1672967084867,2.69251766,16871.0,16870.0,0.107681]
[1672967085128,2.08098766,16871.0,16870.0,0.107681]
[1672967085372,2.69251766,16871.0,16870.0,0.107681]
[1672967085628,3.28077355,16871.0,16870.0,0.107681]
[1672967087403,2.66924355,16871.0,16870.0,0.107681]
[1672967087909,3.28086949,16871.0,16870.0,0.107681]
[1672967088165,2.66933949,16871.0,16870.0,0.107681]
[1672967088407,3.28086949,16871.0,16870.0,0.107681]
[1672967089183,2.66933949,16871.0,16870.0,0.107681]
[1672967089429,3.28086949,16871.0,16870.0,0.107681]
[1672967089922,2.66933949,16871.0,16870.0,0.107681]
[1672967091114,3.28086949,16871.0,16870.0,0.107681]
[1672967092650,2.66933949,16871.0,16870.0,0.107681]
[1672967092864,3.28086949,16871.0,16870.0,0.107681]
[1672967093087,3.28086949,16871.0,16870.0,0.10758648]
[1672967093806,2.66933949,16871.0,16870.0,0.10758648]
[1672967097982,2.66924355,16871.0,16870.0,0.10758648]
[1672967098479,2.66933949,16871.0,16870.0,0.10758648]
[1672967100249,2.36933949,16871.0,16870.0,0.10758648]
[1672967101311,2.66933949,16871.0,16870.0,0.10758648]
[1672967102092,2.66924355,16871.0,16870.0,0.10758648]
[1672967105879,2.36933949,16871.0,16870.0,0.10758648]
[1672967106092,2.66933949,16871.0,16870.0,0.10758648]
[1672967109315,2.66926683,16871.0,16870.0,0.10758648]
[1672967114323,3.28079683,16871.0,16870.0,0.10758648]
[1672967115199,2.66926683,16871.0,16870.0,0.10758648]
[1672967115952,3.28079683,16871.0,16870.0,0.10758648]
[1672967116721,2.66926683,16871.0,16870.0,0.10758648]
[1672967117037,3.8750774,16871.0,16870.0,0.10758648]
[1672967117517,3.28079683,16871.0,16870.0,0.10758648]
[1672967117773,3.87493486,16871.0,16870.0,0.10758648]
[1672967118811,3.28079683,16871.0,16870.0,0.10758648]
[1672967119066,3.87532048,16871.0,16870.0,0.10758648]
[1672967119320,3.28079683,16871.0,16870.0,0.10758648]
[1672967121153,3.87543218,16871.0,16870.0,0.10758648]
[1672967121426,3.8753979,16871.0,16870.0,0.10758648]
[1672967123186,3.28079683,16871.0,16870.0,0.10758648]
[1672967123732,2.66926683,16871.0,16870.0,0.10758648]
[1672967125231,3.28079683,16871.0,16870.0,0.10758648]
[1672967126726,2.66926683,16871.0,16870.0,0.10758648]
[1672967127789,3.28079683,16871.0,16870.0,0.10758648]
[1672967128298,2.66926683,16871.0,16870.0,0.10758648]
[1672967130107,2.66926683,16871.0,16870.0,0.10746827]
[1672967141913,3.28079683,16871.0,16870.0,0.10746827]
[1672967146191,2.66926683,16871.0,16870.0,0.10746827]
[1672967147162,3.28079683,16871.0,16870.0,0.10746827]
[1672967148220,2.66926683,16871.0,16870.0,0.10746827]
[1672967148476,3.28079683,16871.0,16870.0,0.10746827]
[1672967150676,2.66926683,16871.0,16870.0,0.10746827]
[1672967150926,3.28079683,16871.0,16870.0,0.10746827]
[1672967151180,2.66926683,16871.0,16870.0,0.10746827]
[1672967151425,2.66926683,16871.0,16870.0,0.10736456]
[1672967155334,3.28079683,16871.0,16870.0,0.10736456]
[1672967160325,2.66926683,16871.0,16870.0,0.10736456]
[1672967160581,2.66917089,16871.0,16870.0,0.10736456]
[1672967164495,2.66926683,16871.0,16870.0,0.10736456]
[1672967164750,2.66917089,16871.0,16870.0,0.10736456]
[1672967165536,2.36926683,16871.0,16870.0,0.10736456]
[1672967165716,2.66926683,16871.0,16870.0,0.10736456]
[1672967166221,2.36926683,16871.0,16870.0,0.10736456]
[1672967166722,2.66926683,16871.0,16870.0,0.10736456]
[1672967167222,2.36926683,16871.0,16870.0,0.10736456]
[1672967167480,2.66926683,16871.0,16870.0,0.10736456]
[1672967168691,2.66917089,16871.0,16870.0,0.10736456]
[1672967169196,2.36917089,16871.0,16870.0,0.10736456]
[1672967169915,2.66917089,16871.0,16870.0,0.10736456]
[1672967170428,2.36917089,16871.0,16870.0,0.10736456]
[1672967170642,2.66917089,16871.0,16870.0,0.10736456]
[1672967171130,2.36917089,16871.0,16870.0,0.10736456]
[1672967171644,2.66917089,16871.0,16870.0,0.10724889]
[1672967171934,2.36917089,16871.0,16870.0,0.10724889]
[1672967172441,2.66926683,16871.0,16870.0,0.10724889]